[Event "Early-Titled-Tuesday-Blitz-February-27-2024"]
[Site "Chess.com"]
[Date "2024.02.27"]
[Round "9"]
[White "MasterKroket"]
[Black "Skatchkov_V"]
[Result "0-1"]
[WhiteElo "2485"]
[BlackElo "2669"]
[TimeControl "180+1"]
[EndTime "9:46:13 PST"]
[Termination "Skatchkov_V won by resignation"]

1. e4 {[%clk 0:02:54.6]} 1... e5 {[%clk 0:02:56.7]} 2. Nf3 {[%clk 0:02:54]} 2...
d5 {[%clk 0:02:57.2]} 3. exd5 {[%clk 0:02:50.5]} 3... e4 {[%clk 0:02:56.6]} 4.
Qe2 {[%clk 0:02:50.7]} 4... Nf6 {[%clk 0:02:56.6]} 5. Nc3 {[%clk 0:02:50.4]}
5... Be7 {[%clk 0:02:55.9]} 6. Nxe4 {[%clk 0:02:49.9]} 6... Nxd5 {[%clk
0:02:56.1]} 7. d4 {[%clk 0:02:41.6]} 7... O-O {[%clk 0:02:55.3]} 8. c4 {[%clk
0:02:41.9]} 8... Nb4 {[%clk 0:02:52.8]} 9. a3 {[%clk 0:02:37.6]} 9... Re8 {[%clk
0:02:53]} 10. axb4 {[%clk 0:02:35.9]} 10... Bxb4+ {[%clk 0:02:53.2]} 11. Bd2
{[%clk 0:02:34.2]} 11... Bxd2+ {[%clk 0:02:53]} 12. Kxd2 {[%clk 0:02:34.1]}
12... Bf5 {[%clk 0:02:35]} 13. Kc3 {[%clk 0:02:12.2]} 13... Nc6 {[%clk
0:02:19.7]} 14. Rd1 {[%clk 0:01:54.7]} 14... Rxe4 {[%clk 0:01:49.4]} 15. Qd2
{[%clk 0:01:48.8]} 15... Qe7 {[%clk 0:01:49.6]} 16. Kb3 {[%clk 0:01:46.5]} 16...
b5 {[%clk 0:00:47.5]} 17. cxb5 {[%clk 0:01:34.5]} 17... Be6+ {[%clk 0:00:38.6]}
18. d5 {[%clk 0:01:32.8]} 18... Rb4+ {[%clk 0:00:38]} 19. Ka2 {[%clk 0:01:32.3]}
19... Rd8 {[%clk 0:00:08.7]} 20. bxc6 {[%clk 0:01:06.7]} 20... Rxd5 {[%clk
0:00:08.6]} 21. Qxd5 {[%clk 0:01:06.4]} 21... Ra4+ {[%clk 0:00:08.3]} 22. Kb1
{[%clk 0:01:04.2]} 22... Bxd5 {[%clk 0:00:08.2]} 23. Rxd5 {[%clk 0:01:04.3]}
23... Qe4+ {[%clk 0:00:08.2]} 24. Rd3 {[%clk 0:01:01.5]} 24... Rd4 {[%clk
0:00:06.8]} 25. Kc2 {[%clk 0:00:52.2]} 25... Qxc6+ {[%clk 0:00:04.5]} 26. Kd2
{[%clk 0:00:48.8]} 26... Rxd3+ {[%clk 0:00:04.2]} 27. Bxd3 {[%clk 0:00:48.5]}
27... Qb6 {[%clk 0:00:05.1]} 28. Re1 {[%clk 0:00:43]} 28... Qxb2+ {[%clk
0:00:05]} 29. Bc2 {[%clk 0:00:41.7]} 29... g6 {[%clk 0:00:05.2]} 30. Ne5 {[%clk
0:00:36.5]} 30... Qd4+ {[%clk 0:00:04.4]} 31. Nd3 {[%clk 0:00:35.9]} 31... c5
{[%clk 0:00:04.5]} 32. Ke2 {[%clk 0:00:20]} 32... c4 {[%clk 0:00:04.1]} 33. Nc1
{[%clk 0:00:18.7]} 33... Qb2 {[%clk 0:00:04.3]} 34. Kd1 {[%clk 0:00:18.8]} 34...
c3 {[%clk 0:00:03.9]} 35. Re8+ {[%clk 0:00:17.6]} 35... Kg7 {[%clk 0:00:03.8]}
36. Rc8 {[%clk 0:00:17]} 36... a5 {[%clk 0:00:03.6]} 37. Ne2 {[%clk 0:00:16.1]}
37... Qa1+ {[%clk 0:00:03.8]} 38. Nc1 {[%clk 0:00:16.7]} 38... a4 {[%clk
0:00:03.8]} 39. Rc4 {[%clk 0:00:15]} 39... a3 {[%clk 0:00:03.1]} 40. Ra4 {[%clk
0:00:14.9]} 40... Qb2 {[%clk 0:00:02.3]} 41. g4 {[%clk 0:00:13.9]} 41... h6
{[%clk 0:00:01.5]} 42. h4 {[%clk 0:00:13.8]} 42... Qb5 {[%clk 0:00:01.7]} 43.
Ke1 {[%clk 0:00:10.5]} 43... Qe5+ {[%clk 0:00:01.6]} 44. Kd1 {[%clk 0:00:10.2]}
44... Qh2 {[%clk 0:00:02.4]} 45. Nd3 {[%clk 0:00:09.1]} 45... Qxh4 {[%clk
0:00:02.8]} 46. Rxa3 {[%clk 0:00:09.5]} 46... Qh1+ {[%clk 0:00:03.1]} 47. Ke2
{[%clk 0:00:09.3]} 47... Qe4+ {[%clk 0:00:03.9]} 48. Kd1 {[%clk 0:00:08.9]}
48... Qd4 {[%clk 0:00:04.2]} 49. Ra4 {[%clk 0:00:08.6]} 49... Qd6 {[%clk
0:00:04.5]} 50. Rc4 {[%clk 0:00:08.6]} 50... Qf6 {[%clk 0:00:04.8]} 51. Ke2
{[%clk 0:00:08.1]} 51... Qe6+ {[%clk 0:00:05]} 52. Kf1 {[%clk 0:00:07.6]} 52...
Qxc4 {[%clk 0:00:05.3]} 53. Ke2 {[%clk 0:00:07.1]} 53... Qd4 {[%clk 0:00:06.2]}
54. f3 {[%clk 0:00:06.8]} 54... h5 {[%clk 0:00:07.1]} 55. gxh5 {[%clk
0:00:06.7]} 55... gxh5 {[%clk 0:00:08]} 56. Kf1 {[%clk 0:00:07]} 56... h4 {[%clk
0:00:07.8]} 57. Ke2 {[%clk 0:00:07.4]} 57... h3 {[%clk 0:00:08.1]} 0-1

[Event "Early-Titled-Tuesday-Blitz-February-27-2024"]
[Site "Chess.com"]
[Date "2024.02.27"]
[Round "9"]
[White "Felix-Rose"]
[Black "Alexchess1984"]
[Result "0-1"]
[WhiteElo "2268"]
[BlackElo "2714"]
[TimeControl "180+1"]
[EndTime "9:46:13 PST"]
[Termination "Alexchess1984 won by checkmate"]

1. Nf3 {[%clk 0:02:58.6]} 1... g6 {[%clk 0:02:58.1]} 2. c4 {[%clk 0:02:56.4]}
2... Bg7 {[%clk 0:02:58.4]} 3. e3 {[%clk 0:02:55.9]} 3... Nf6 {[%clk 0:02:57.7]}
4. Be2 {[%clk 0:02:56.1]} 4... O-O {[%clk 0:02:57.1]} 5. Nc3 {[%clk 0:02:55.7]}
5... b6 {[%clk 0:02:53.2]} 6. d4 {[%clk 0:02:55.6]} 6... Bb7 {[%clk 0:02:53.7]}
7. b3 {[%clk 0:02:49.9]} 7... d6 {[%clk 0:02:53.6]} 8. Bb2 {[%clk 0:02:49.9]}
8... Nbd7 {[%clk 0:02:52.7]} 9. O-O {[%clk 0:02:49.6]} 9... e5 {[%clk
0:02:51.9]} 10. Qc2 {[%clk 0:02:44.3]} 10... Qe7 {[%clk 0:02:48.8]} 11. Rfd1
{[%clk 0:02:42.4]} 11... Rfe8 {[%clk 0:02:28.8]} 12. Rac1 {[%clk 0:02:40.8]}
12... e4 {[%clk 0:02:25.8]} 13. Nd2 {[%clk 0:02:36.5]} 13... h5 {[%clk
0:02:21.7]} 14. d5 {[%clk 0:02:33.8]} 14... a5 {[%clk 0:02:15]} 15. a4 {[%clk
0:02:31.6]} 15... Nc5 {[%clk 0:02:13.4]} 16. Ba3 {[%clk 0:02:28.3]} 16... h4
{[%clk 0:02:06.6]} 17. h3 {[%clk 0:02:25.6]} 17... Bc8 {[%clk 0:02:06.4]} 18.
Bxc5 {[%clk 0:02:19.9]} 18... dxc5 {[%clk 0:02:05.8]} 19. Re1 {[%clk 0:01:55.5]}
19... Bf5 {[%clk 0:02:05]} 20. Nb5 {[%clk 0:01:50.9]} 20... Nh7 {[%clk
0:02:00.9]} 21. Rcd1 {[%clk 0:01:38.4]} 21... Ng5 {[%clk 0:01:42.1]} 22. Bf1
{[%clk 0:01:31.2]} 22... Be5 {[%clk 0:01:38.4]} 23. Nb1 {[%clk 0:01:25.9]} 23...
Bd7 {[%clk 0:00:32.3]} 24. N1c3 {[%clk 0:01:24.1]} 24... Bf5 {[%clk 0:00:16.8]}
25. Kh1 {[%clk 0:01:21.9]} 25... Qd7 {[%clk 0:00:15.3]} 26. Qe2 {[%clk
0:01:03.8]} 26... Nxh3 {[%clk 0:00:05.3]} 27. gxh3 {[%clk 0:01:02.4]} 27... Bxh3
{[%clk 0:00:06.2]} 28. f4 {[%clk 0:00:27.3]} 28... exf3 {[%clk 0:00:06.2]} 29.
Qxf3 {[%clk 0:00:23.5]} 29... Bg4 {[%clk 0:00:06.4]} 30. Qg2 {[%clk 0:00:19.8]}
30... h3 {[%clk 0:00:04.4]} 31. Qg1 {[%clk 0:00:14.8]} 31... Qf5 {[%clk
0:00:04.2]} 32. Be2 {[%clk 0:00:06.7]} 32... Bxe2 {[%clk 0:00:04.4]} 33. Rxe2
{[%clk 0:00:07.5]} 33... Qf3+ {[%clk 0:00:05]} 34. Rg2 {[%clk 0:00:05.8]} 34...
hxg2+ {[%clk 0:00:05.1]} 35. Qxg2 {[%clk 0:00:06.6]} 35... Qxg2+ {[%clk
0:00:04.9]} 36. Kxg2 {[%clk 0:00:07.5]} 36... Bxc3 {[%clk 0:00:05.6]} 37. Nxc3
{[%clk 0:00:07.6]} 37... Rxe3 {[%clk 0:00:06.3]} 38. Nb5 {[%clk 0:00:08.2]}
38... Rc8 {[%clk 0:00:06.3]} 39. Rb1 {[%clk 0:00:07.6]} 39... Re7 {[%clk
0:00:06.1]} 40. Kf3 {[%clk 0:00:07.7]} 40... Rd7 {[%clk 0:00:06.1]} 41. Re1
{[%clk 0:00:07.6]} 41... Kf8 {[%clk 0:00:06]} 42. Rh1 {[%clk 0:00:07.8]} 42...
Kg7 {[%clk 0:00:05.8]} 43. Re1 {[%clk 0:00:08]} 43... Kf6 {[%clk 0:00:06.4]} 44.
Kf4 {[%clk 0:00:08.2]} 44... Re7 {[%clk 0:00:06.7]} 45. Rf1 {[%clk 0:00:05.4]}
45... Rce8 {[%clk 0:00:05.9]} 46. d6 {[%clk 0:00:03.8]} 46... cxd6 {[%clk
0:00:04.3]} 47. Nxd6 {[%clk 0:00:04.2]} 47... Rd8 {[%clk 0:00:04.9]} 48. Ne4+
{[%clk 0:00:04.7]} 48... Kg7 {[%clk 0:00:05.2]} 49. Nc3 {[%clk 0:00:04.5]} 49...
Rd4+ {[%clk 0:00:05]} 50. Kg3 {[%clk 0:00:02.5]} 50... Rd3+ {[%clk 0:00:05.5]}
51. Rf3 {[%clk 0:00:03.2]} 51... Ree3 {[%clk 0:00:06.2]} 52. Rxe3 {[%clk
0:00:02.9]} 52... Rxe3+ {[%clk 0:00:07.1]} 53. Kf4 {[%clk 0:00:03.8]} 53... Rxc3
{[%clk 0:00:07.6]} 54. Kg5 {[%clk 0:00:03.4]} 54... Rxb3 {[%clk 0:00:08.3]} 55.
Kg4 {[%clk 0:00:03]} 55... Rb4 {[%clk 0:00:08.7]} 56. Kg5 {[%clk 0:00:02.9]}
56... Rxa4 {[%clk 0:00:08]} 57. Kg4 {[%clk 0:00:02.9]} 57... Rxc4+ {[%clk
0:00:08.1]} 58. Kg5 {[%clk 0:00:03.8]} 58... f6# {[%clk 0:00:08]} 0-1

[Event "Early-Titled-Tuesday-Blitz-February-27-2024"]
[Site "Chess.com"]
[Date "2024.02.27"]
[Round "9"]
[White "Fluffey"]
[Black "Yurovskykh_Oleksandr"]
[Result "0-1"]
[WhiteElo "2518"]
[BlackElo "2685"]
[TimeControl "180+1"]
[EndTime "9:46:14 PST"]
[Termination "Yurovskykh_Oleksandr won by checkmate"]

1. d4 {[%clk 0:03:00.9]} 1... d5 {[%clk 0:02:55.8]} 2. Bf4 {[%clk 0:03:01.4]}
2... c5 {[%clk 0:02:53.7]} 3. e3 {[%clk 0:03:01.9]} 3... Nc6 {[%clk 0:02:53.5]}
4. Nf3 {[%clk 0:03:02.5]} 4... Nf6 {[%clk 0:02:47.8]} 5. Nbd2 {[%clk 0:03:02.6]}
5... cxd4 {[%clk 0:02:45.1]} 6. exd4 {[%clk 0:03:03.5]} 6... Bf5 {[%clk
0:02:45.2]} 7. Bb5 {[%clk 0:03:00.7]} 7... Qb6 {[%clk 0:02:41.6]} 8. c4 {[%clk
0:02:59.3]} 8... a6 {[%clk 0:02:40.8]} 9. Bxc6+ {[%clk 0:02:58.5]} 9... bxc6
{[%clk 0:02:41.7]} 10. c5 {[%clk 0:02:57.1]} 10... Qb5 {[%clk 0:02:40.8]} 11.
Ne5 {[%clk 0:02:43.1]} 11... Nd7 {[%clk 0:02:31.8]} 12. Nxd7 {[%clk 0:02:41]}
12... Kxd7 {[%clk 0:02:31.7]} 13. Nb3 {[%clk 0:01:36.7]} 13... e6 {[%clk
0:02:21.8]} 14. Bd2 {[%clk 0:01:17.2]} 14... a5 {[%clk 0:02:15.1]} 15. a4 {[%clk
0:01:16.1]} 15... Qc4 {[%clk 0:01:59.9]} 16. Bc3 {[%clk 0:01:09]} 16... Be7
{[%clk 0:01:47.6]} 17. Nxa5 {[%clk 0:01:05.6]} 17... Qa6 {[%clk 0:01:45.1]} 18.
b4 {[%clk 0:01:00.4]} 18... Rhb8 {[%clk 0:01:43.8]} 19. Qe2 {[%clk 0:00:53.9]}
19... Bd3 {[%clk 0:01:40.7]} 20. Qg4 {[%clk 0:00:47.5]} 20... Bg6 {[%clk
0:01:39.3]} 21. Qe2 {[%clk 0:00:34.4]} 21... Bd3 {[%clk 0:01:19.3]} 22. Qe3
{[%clk 0:00:34.8]} 22... Bg6 {[%clk 0:00:51.9]} 23. Kd2 {[%clk 0:00:32]} 23...
Ra7 {[%clk 0:00:49.6]} 24. h4 {[%clk 0:00:24.2]} 24... h5 {[%clk 0:00:49.2]} 25.
g3 {[%clk 0:00:24.2]} 25... Bd8 {[%clk 0:00:49.1]} 26. Nb3 {[%clk 0:00:19.9]}
26... Qc4 {[%clk 0:00:47.8]} 27. Nc1 {[%clk 0:00:14.9]} 27... Rxb4 {[%clk
0:00:37.5]} 28. Bxb4 {[%clk 0:00:14.2]} 28... Qxb4+ {[%clk 0:00:37.8]} 29. Qc3
{[%clk 0:00:14.3]} 29... Qb8 {[%clk 0:00:23.9]} 30. Nb3 {[%clk 0:00:12.8]} 30...
Rb7 {[%clk 0:00:21]} 31. Rhb1 {[%clk 0:00:11.4]} 31... Bxb1 {[%clk 0:00:18.9]}
32. Rxb1 {[%clk 0:00:12.3]} 32... Qa8 {[%clk 0:00:18.5]} 33. a5 {[%clk
0:00:10.6]} 33... Rb5 {[%clk 0:00:18.5]} 34. Ra1 {[%clk 0:00:10.5]} 34... Kc8
{[%clk 0:00:18.5]} 35. f4 {[%clk 0:00:08.5]} 35... g6 {[%clk 0:00:18.2]} 36. Ke3
{[%clk 0:00:08.9]} 36... Qb8 {[%clk 0:00:17.4]} 37. Ra3 {[%clk 0:00:08]} 37...
Qb7 {[%clk 0:00:16.9]} 38. a6 {[%clk 0:00:08.5]} 38... Qa7 {[%clk 0:00:17.3]}
39. Nc1 {[%clk 0:00:08.7]} 39... Bc7 {[%clk 0:00:14.1]} 40. Nd3 {[%clk
0:00:08.9]} 40... Kb8 {[%clk 0:00:14.2]} 41. Nb4 {[%clk 0:00:08]} 41... Qa8
{[%clk 0:00:13.6]} 42. a7+ {[%clk 0:00:08.4]} 42... Kc8 {[%clk 0:00:14.2]} 43.
Ra6 {[%clk 0:00:08.5]} 43... Ra5 {[%clk 0:00:07.9]} 44. Qa3 {[%clk 0:00:06.4]}
44... Rxa3+ {[%clk 0:00:08]} 45. Rxa3 {[%clk 0:00:06.3]} 45... Kb7 {[%clk
0:00:08.2]} 46. Nd3 {[%clk 0:00:05.3]} 46... Qxa7 {[%clk 0:00:04]} 47. Rxa7+
{[%clk 0:00:05.2]} 47... Kxa7 {[%clk 0:00:04.9]} 48. Ne5 {[%clk 0:00:05.7]}
48... Bxe5 {[%clk 0:00:04.2]} 49. fxe5 {[%clk 0:00:06.2]} 49... Ka6 {[%clk
0:00:04.9]} 50. Kf4 {[%clk 0:00:06.9]} 50... Kb5 {[%clk 0:00:05.6]} 51. Kg5
{[%clk 0:00:07.6]} 51... Kc4 {[%clk 0:00:06.3]} 52. Kf6 {[%clk 0:00:08.3]} 52...
Kxd4 {[%clk 0:00:06.7]} 53. Kxf7 {[%clk 0:00:08.9]} 53... Kxe5 {[%clk
0:00:07.1]} 54. Kxg6 {[%clk 0:00:09.5]} 54... d4 {[%clk 0:00:07.7]} 55. Kxh5
{[%clk 0:00:09.2]} 55... d3 {[%clk 0:00:08.2]} 56. g4 {[%clk 0:00:09.7]} 56...
d2 {[%clk 0:00:09.1]} 57. g5 {[%clk 0:00:10.6]} 57... d1=Q+ {[%clk 0:00:09]} 58.
Kh6 {[%clk 0:00:11.5]} 58... Qg4 {[%clk 0:00:07.4]} 59. h5 {[%clk 0:00:11.2]}
59... Kf5 {[%clk 0:00:07.8]} 60. g6 {[%clk 0:00:11.7]} 60... Qg5+ {[%clk
0:00:08.3]} 61. Kg7 {[%clk 0:00:11.8]} 61... Qxh5 {[%clk 0:00:08.9]} 62. Kf8
{[%clk 0:00:12.2]} 62... Qxg6 {[%clk 0:00:08.7]} 63. Ke7 {[%clk 0:00:13.1]}
63... Qg7+ {[%clk 0:00:09.1]} 64. Kd6 {[%clk 0:00:13.6]} 64... Qd4+ {[%clk
0:00:08.8]} 65. Kxc6 {[%clk 0:00:14.1]} 65... Qxc5+ {[%clk 0:00:08.3]} 66. Kxc5
{[%clk 0:00:14.5]} 66... e5 {[%clk 0:00:09.2]} 67. Kc4 {[%clk 0:00:15.1]} 67...
Kf4 {[%clk 0:00:10.1]} 68. Kc3 {[%clk 0:00:15.8]} 68... Kf3 {[%clk 0:00:10.7]}
69. Kd2 {[%clk 0:00:16.5]} 69... e4 {[%clk 0:00:10.8]} 70. Ke1 {[%clk
0:00:17.1]} 70... Ke3 {[%clk 0:00:11.3]} 71. Kd1 {[%clk 0:00:17.5]} 71... Kf2
{[%clk 0:00:11.8]} 72. Kd2 {[%clk 0:00:17.9]} 72... e3+ {[%clk 0:00:12.7]} 73.
Kd3 {[%clk 0:00:18.6]} 73... e2 {[%clk 0:00:13.6]} 74. Kc2 {[%clk 0:00:19]}
74... e1=Q {[%clk 0:00:14.5]} 75. Kb2 {[%clk 0:00:19.8]} 75... Qe3 {[%clk
0:00:15.1]} 76. Kc2 {[%clk 0:00:20]} 76... Kf3 {[%clk 0:00:16]} 77. Kb2 {[%clk
0:00:20.9]} 77... Ke4 {[%clk 0:00:16.7]} 78. Kc2 {[%clk 0:00:21.8]} 78... Kd4
{[%clk 0:00:17.6]} 79. Kb2 {[%clk 0:00:22.4]} 79... Qc3+ {[%clk 0:00:17.9]} 80.
Kb1 {[%clk 0:00:23.2]} 80... Qd2 {[%clk 0:00:18.2]} 81. Ka1 {[%clk 0:00:23.4]}
81... Kc3 {[%clk 0:00:19.1]} 82. Kb1 {[%clk 0:00:24.3]} 82... Qb2# {[%clk
0:00:19.6]} 0-1

[Event "Early-Titled-Tuesday-Blitz-February-27-2024"]
[Site "Chess.com"]
[Date "2024.02.27"]
[Round "9"]
[White "Hovik_Hayrapetyan"]
[Black "Maikrosoft63"]
[Result "0-1"]
[WhiteElo "2855"]
[BlackElo "2627"]
[TimeControl "180+1"]
[EndTime "9:46:20 PST"]
[Termination "Maikrosoft63 won on time"]

1. d4 {[%clk 0:03:00.9]} 1... Nf6 {[%clk 0:02:59.6]} 2. c4 {[%clk 0:02:57.4]}
2... e6 {[%clk 0:02:59.7]} 3. Nc3 {[%clk 0:02:57.4]} 3... Bb4 {[%clk 0:02:58.6]}
4. e3 {[%clk 0:02:57.7]} 4... Bxc3+ {[%clk 0:02:55.7]} 5. bxc3 {[%clk
0:02:57.7]} 5... c5 {[%clk 0:02:56]} 6. Bd3 {[%clk 0:02:57.2]} 6... d6 {[%clk
0:02:56.1]} 7. Ne2 {[%clk 0:02:57.8]} 7... Nc6 {[%clk 0:02:55.9]} 8. e4 {[%clk
0:02:58.3]} 8... e5 {[%clk 0:02:53.9]} 9. Be3 {[%clk 0:02:55.5]} 9... Ng4 {[%clk
0:02:47.7]} 10. Bd2 {[%clk 0:02:51.6]} 10... cxd4 {[%clk 0:02:39.6]} 11. cxd4
{[%clk 0:02:50.1]} 11... exd4 {[%clk 0:02:40.5]} 12. O-O {[%clk 0:02:43.1]}
12... O-O {[%clk 0:02:38.9]} 13. Bf4 {[%clk 0:02:40.7]} 13... Nge5 {[%clk
0:02:37.8]} 14. Bb1 {[%clk 0:02:38.3]} 14... Be6 {[%clk 0:02:33.6]} 15. Nxd4
{[%clk 0:02:37]} 15... Nxd4 {[%clk 0:02:33.4]} 16. Qxd4 {[%clk 0:02:37.9]} 16...
Nxc4 {[%clk 0:02:27.8]} 17. Rd1 {[%clk 0:02:25.2]} 17... Qa5 {[%clk 0:02:27.5]}
18. Bd3 {[%clk 0:02:21.6]} 18... Ne5 {[%clk 0:02:20.1]} 19. Qxd6 {[%clk
0:02:14.1]} 19... Nxd3 {[%clk 0:02:13.9]} 20. Qxd3 {[%clk 0:02:09.6]} 20... Rad8
{[%clk 0:02:11.3]} 21. Qg3 {[%clk 0:02:01.1]} 21... Qa4 {[%clk 0:02:11.5]} 22.
Re1 {[%clk 0:01:57]} 22... Rd7 {[%clk 0:02:04.6]} 23. h4 {[%clk 0:01:50.6]}
23... Rfd8 {[%clk 0:01:53]} 24. Be5 {[%clk 0:01:43.3]} 24... f5 {[%clk
0:01:24.4]} 25. exf5 {[%clk 0:01:40.4]} 25... Bxf5 {[%clk 0:01:25.3]} 26. h5
{[%clk 0:01:39.9]} 26... Qg4 {[%clk 0:01:24.8]} 27. Qb3+ {[%clk 0:01:30.7]}
27... Be6 {[%clk 0:01:22]} 28. Qe3 {[%clk 0:01:29.4]} 28... Bd5 {[%clk
0:01:17.5]} 29. Bg3 {[%clk 0:01:22.4]} 29... Qxh5 {[%clk 0:01:17.7]} 30. Qxa7
{[%clk 0:01:00.9]} 30... h6 {[%clk 0:01:11.8]} 31. Re5 {[%clk 0:01:00.1]} 31...
Qf7 {[%clk 0:01:11.1]} 32. Qb6 {[%clk 0:00:55.5]} 32... Bc6 {[%clk 0:01:11]} 33.
Rae1 {[%clk 0:00:54.5]} 33... Rd1 {[%clk 0:01:02.9]} 34. Kh2 {[%clk 0:00:53.3]}
34... Kh7 {[%clk 0:00:59.2]} 35. Qb4 {[%clk 0:00:44.3]} 35... R8d4 {[%clk
0:00:52.3]} 36. Qe7 {[%clk 0:00:20.7]} 36... Qxe7 {[%clk 0:00:45.3]} 37. Rxe7
{[%clk 0:00:20.2]} 37... Rxe1 {[%clk 0:00:45.2]} 38. Rxe1 {[%clk 0:00:21.1]}
38... Kg6 {[%clk 0:00:42.9]} 39. Re7 {[%clk 0:00:20.1]} 39... Rd7 {[%clk
0:00:42.4]} 40. Re3 {[%clk 0:00:16.3]} 40... Kf5 {[%clk 0:00:41.8]} 41. f3
{[%clk 0:00:13.3]} 41... Rd2 {[%clk 0:00:37.2]} 42. a3 {[%clk 0:00:12.6]} 42...
g5 {[%clk 0:00:35.2]} 43. Rc3 {[%clk 0:00:07.2]} 43... h5 {[%clk 0:00:34.1]} 44.
Be1 {[%clk 0:00:05.5]} 44... Re2 {[%clk 0:00:33.1]} 45. Bg3 {[%clk 0:00:04.8]}
45... g4 {[%clk 0:00:29.7]} 46. Kg1 {[%clk 0:00:04.7]} 46... gxf3 {[%clk
0:00:28.1]} 47. gxf3 {[%clk 0:00:05.6]} 47... Ra2 {[%clk 0:00:27.7]} 48. Bf2
{[%clk 0:00:05.4]} 48... Kf4 {[%clk 0:00:25.6]} 49. Kg2 {[%clk 0:00:06.1]} 49...
Bd5 {[%clk 0:00:22.7]} 50. Rd3 {[%clk 0:00:06.2]} 50... Bc6 {[%clk 0:00:22.7]}
51. Rd4+ {[%clk 0:00:06.3]} 51... Kf5 {[%clk 0:00:23.1]} 52. Rd3 {[%clk
0:00:06.3]} 52... Kf4 {[%clk 0:00:20.2]} 53. Rd4+ {[%clk 0:00:02.3]} 53... Kf5
{[%clk 0:00:20.7]} 54. Rh4 {[%clk 0:00:03.2]} 54... Rxa3 {[%clk 0:00:19.1]} 55.
Rxh5+ {[%clk 0:00:03.7]} 55... Kg6 {[%clk 0:00:19.3]} 56. Rh3 {[%clk 0:00:03.8]}
56... b5 {[%clk 0:00:19.4]} 57. Rg3+ {[%clk 0:00:04.3]} 57... Kf5 {[%clk
0:00:19.7]} 58. Bd4 {[%clk 0:00:04.1]} 58... b4 {[%clk 0:00:19]} 59. Kf2 {[%clk
0:00:03.8]} 59... b3 {[%clk 0:00:18.4]} 60. Rg1 {[%clk 0:00:02.4]} 60... b2
{[%clk 0:00:13.1]} 61. Bxb2 {[%clk 0:00:02.7]} 61... Rxf3+ {[%clk 0:00:12.6]}
62. Ke2 {[%clk 0:00:03.4]} 62... Rb3 {[%clk 0:00:12.5]} 63. Bc1 {[%clk
0:00:03.8]} 63... Bb5+ {[%clk 0:00:12.2]} 64. Kd1 {[%clk 0:00:03.3]} 64... Rh3
{[%clk 0:00:11.9]} 0-1